bitfinex/quotes_BTCUSD_20251102
["timestamp","ask_amount","ask_price","bid_price","bid_amount"]
[1762083302529,0.00348307,110950.0,110930.0,0.37468]
[1762083303209,0.00148307,110950.0,110930.0,0.37468]
[1762083303415,0.00048307,110950.0,110930.0,0.37468]
[1762083303624,0.00348307,110950.0,110930.0,0.37468]
[1762083306118,0.00348307,110950.0,110940.0,0.06931776]
[1762083306743,0.00248307,110950.0,110940.0,0.06931776]
[1762083307180,0.00248307,110950.0,110940.0,0.05129]
[1762083307385,0.00248307,110950.0,110940.0,0.06931776]
[1762083307833,0.00048307,110950.0,110940.0,0.06931776]
[1762083308666,0.00048307,110950.0,110940.0,0.07231776]
[1762083309083,0.00048307,110950.0,110940.0,0.08131776]
[1762083309294,0.00148307,110950.0,110940.0,0.08131776]
[1762083317078,0.00148307,110950.0,110940.0,0.05819776]
[1762083317285,0.00148307,110950.0,110940.0,0.03002776]
[1762083317702,0.00148307,110950.0,110940.0,0.012]
[1762083318581,0.00048307,110950.0,110940.0,0.003]
[1762083319001,0.00148307,110950.0,110930.0,0.34]
[1762083319232,0.00348307,110950.0,110930.0,0.34]
[1762083319444,0.01565433,110950.0,110930.0,0.34]
[1762083319649,0.00348307,110950.0,110930.0,0.34]
[1762083319856,0.00248307,110950.0,110930.0,0.34]
[1762083320819,0.00048307,110950.0,110930.0,0.34]
[1762083321244,0.00248307,110950.0,110930.0,0.34]
[1762083321880,0.01662465,110950.0,110930.0,0.34]
[1762083322084,0.00248307,110950.0,110930.0,0.34]
[1762083323973,0.00248307,110950.0,110930.0,0.35587]
[1762083327608,0.00248307,110950.0,110930.0,0.3521]
[1762083327797,0.00248307,110950.0,110930.0,0.36797]
[1762083328494,0.00248307,110950.0,110930.0,0.34]
[1762083330494,0.00248307,110950.0,110930.0,0.35563]
[1762083335322,0.01662456,110950.0,110930.0,0.35563]
[1762083335934,0.00248307,110950.0,110930.0,0.34]
[1762083339030,0.0166246,110950.0,110930.0,0.34]
[1762083344937,0.0166246,110950.0,110930.0,0.36746]
[1762083351241,0.08488513,110950.0,110930.0,0.36746]
[1762083351443,0.0166246,110950.0,110930.0,0.36746]
[1762083351793,0.0166246,110950.0,110930.0,0.41587569]
[1762083358394,0.0166246,110950.0,110930.0,0.38841569]
[1762083358612,0.02508554,110950.0,110930.0,0.38841569]
[1762083361200,0.02508554,110950.0,110930.0,0.34]
[1762083368031,0.05217554,110950.0,110930.0,0.34]
[1762083370799,0.08575168,110940.0,110920.0,0.38841569]
[1762083371434,0.04893215,110950.0,110920.0,0.38841569]
[1762083371435,0.0437146,110950.0,110920.0,0.38841569]
[1762083371655,0.02508337,110950.0,110920.0,0.38841569]
[1762083371863,0.02709267,110940.0,110920.0,0.38841569]
[1762083372089,0.02709267,110940.0,110920.0,0.39041569]
[1762083372503,0.02709267,110940.0,110920.0,0.34]
[1762083374520,0.03009267,110940.0,110920.0,0.34]
[1762083374938,0.003,110940.0,110920.0,0.34]
[1762083375353,0.0270935,110930.0,110920.0,0.34]
[1762083377001,0.0270935,110930.0,110920.0,0.342]
[1762083377212,0.0270935,110930.0,110920.0,0.35847]
[1762083379028,0.0270935,110930.0,110920.0,0.342]
[1762083380108,0.0270935,110930.0,110920.0,0.39456]
[1762083380311,0.0270935,110930.0,110920.0,0.41922569]
[1762083380889,0.00048307,110950.0,110920.0,0.44297569]
[1762083381235,0.02757383,110950.0,110940.0,0.34]
[1762083382083,0.03157383,110950.0,110940.0,0.34]
[1762083382288,0.02757383,110950.0,110930.0,0.06075569]
[1762083382498,0.02757383,110950.0,110930.0,0.09525507]
[1762083382707,0.03157383,110950.0,110930.0,0.09525507]
[1762083383122,0.03557383,110950.0,110930.0,0.09525507]
[1762083383557,0.03157383,110950.0,110930.0,0.09525507]
[1762083383973,0.03157383,110950.0,110940.0,0.34]
[1762083384183,0.03557383,110950.0,110940.0,0.34]
[1762083384635,0.03557383,110950.0,110940.0,0.35599]
[1762083384844,0.03157383,110950.0,110940.0,0.34]
[1762083385054,0.02757383,110950.0,110930.0,0.08410569]
[1762083385264,0.02957383,110950.0,110940.0,0.35599]
[1762083385480,0.02957383,110950.0,110940.0,0.36727]
[1762083386145,0.03057383,110950.0,110940.0,0.36727]
[1762083386570,0.02957383,110950.0,110940.0,0.36727]
[1762083386729,0.02957383,110950.0,110940.0,0.05062]
[1762083386935,0.03057383,110950.0,110940.0,0.40864776]
[1762083387140,0.03057383,110950.0,110940.0,0.39062]
[1762083387524,0.02757383,110950.0,110940.0,0.39062]
[1762083387952,0.02757383,110950.0,110940.0,0.39262]
[1762083388969,0.00048307,110950.0,110940.0,0.39262]
[1762083391221,0.00048307,110950.0,110940.0,0.42880228]
[1762083391430,0.00048307,110950.0,110940.0,0.47721797]
[1762083392573,0.00048307,110950.0,110940.0,3.47721797]
[1762083392800,0.00048307,110950.0,110940.0,3.50430085]
[1762083396958,0.00048307,110950.0,110940.0,3.50664606]
[1762083410170,0.00048307,110950.0,110940.0,0.50664606]
[1762083412707,0.00048307,110950.0,110940.0,3.50664606]
[1762083413783,0.00048307,110950.0,110940.0,3.45823037]
[1762083414002,0.00048307,110950.0,110940.0,3.52258385]
[1762083415089,0.00048307,110950.0,110940.0,3.49550097]
[1762083416093,0.00048307,110950.0,110940.0,3.49850097]
[1762083416303,0.00048307,110950.0,110940.0,3.49650097]
[1762083416565,0.00048307,110950.0,110940.0,3.50450097]
[1762083417352,0.01462187,110950.0,110940.0,3.50450097]
[1762083417827,0.00048307,110950.0,110940.0,3.50450097]
[1762083418602,0.00048307,110950.0,110940.0,3.53158085]
[1762083419410,0.00048307,110950.0,110940.0,3.53169939]
[1762083420532,0.00048307,110950.0,110940.0,3.46722737]
[1762083423636,0.00048307,110950.0,110940.0,3.54745391]
[1762083424048,0.00048307,110950.0,110940.0,3.57080061]
[1762083430718,0.00048307,110950.0,110940.0,3.54745391]
[1762083431170,0.01462066,110950.0,110940.0,3.54745391]
[1762083431373,0.01462066,110950.0,110940.0,3.57080061]
[1762083431577,0.01462066,110950.0,110940.0,3.54372073]
[1762083431944,0.00048307,110950.0,110940.0,3.54372073]
[1762083434895,0.01462066,110950.0,110940.0,3.54372073]
[1762083435108,0.01462066,110950.0,110940.0,3.52037403]
[1762083435579,0.00048307,110950.0,110940.0,3.67957402]
[1762083436257,0.00048307,110950.0,110940.0,3.54944872]
[1762083436492,0.00148307,110950.0,110940.0,3.63342218]
[1762083436723,0.00015336,110950.0,110940.0,3.63342218]
[1762083437364,0.00015336,110950.0,110940.0,3.74289379]
[1762083437580,0.00015336,110950.0,110940.0,3.80646352]
[1762083437793,0.00115336,110950.0,110940.0,3.75889378]
[1762083438214,0.001,110950.0,110940.0,3.74389378]
[1762083438413,0.001,110950.0,110940.0,3.83893378]
[1762083438628,0.02707203,111020.0,110970.0,0.37618228]
[1762083438836,0.02721694,111020.0,111010.0,0.02789]
[1762083439046,0.02721694,111020.0,111010.0,0.04590639]
[1762083440736,0.03121694,111020.0,111010.0,0.04590639]
[1762083441391,0.03121694,111020.0,111010.0,0.06843639]
[1762083441596,0.04421694,111020.0,111010.0,0.06843639]
[1762083442842,0.01714491,111020.0,111010.0,0.06843639]
[1762083443804,0.01714491,111020.0,111010.0,0.49418807]
[1762083444027,0.01314491,111020.0,111010.0,0.47617168]
[1762083444252,0.00214491,111020.0,111010.0,0.47617168]
[1762083444474,0.01214491,111020.0,111010.0,0.47617168]
[1762083445360,0.01214491,111020.0,111010.0,0.51235396]
[1762083445587,0.01214491,111020.0,111010.0,0.42660228]
[1762083450557,0.01014491,111020.0,111010.0,0.42660228]
[1762083450764,0.00014491,111020.0,111010.0,0.42660228]
[1762083450949,0.00714491,111020.0,111010.0,0.42660228]
[1762083456072,0.00714491,111020.0,111010.0,3.42660228]
[1762083465426,0.00714491,111020.0,111010.0,3.47482102]
[1762083474369,0.00714491,111020.0,111010.0,3.42660228]
[1762083474832,0.00714491,111020.0,111010.0,3.49089393]
[1762083475525,0.00014491,111020.0,111010.0,3.49289393]
[1762083475733,0.00414491,111020.0,111010.0,3.49289393]
[1762083480554,0.00414491,111020.0,111010.0,0.45439291]
[1762083481375,0.00014491,111020.0,111010.0,0.45239291]
[1762083481816,0.00714491,111020.0,111010.0,0.45239291]
[1762083482034,0.00714491,111020.0,111010.0,0.47553291]
[1762083483377,0.00714491,111020.0,111010.0,3.47553291]
[1762083484232,0.00714491,111020.0,111010.0,3.42721228]
[1762083485059,0.00714491,111020.0,111010.0,3.47550419]
[1762083485266,0.00714491,111020.0,111010.0,3.42721228]
[1762083485515,0.00714491,111020.0,111010.0,3.47550384]
[1762083486367,0.00714491,111020.0,111010.0,3.42721228]
[1762083487187,0.00714491,111020.0,111010.0,0.47550437]
[1762083491171,0.00714491,111020.0,111010.0,0.45236437]
[1762083491735,0.00714491,111020.0,111010.0,0.43970437]
[1762083491941,0.00714491,111020.0,111010.0,0.38829209]
[1762083492141,0.00714491,111020.0,111010.0,0.34]
[1762083499309,0.0342143,111020.0,111010.0,0.34]
[1762083500540,0.0342143,111020.0,110990.0,0.04829209]
[1762083500800,0.08575168,111010.0,110990.0,0.01801964]
[1762083501215,0.00714491,111020.0,111000.0,0.01523]
[1762083501426,0.00014491,111020.0,111000.0,0.01523]
[1762083501633,0.02707426,111000.0,110990.0,0.05311964]
[1762083502065,0.02707426,111000.0,110990.0,0.06834964]
[1762083502732,0.02707426,111000.0,110990.0,0.05033]
[1762083502936,0.02707426,111000.0,110990.0,0.15410132]
[1762083503584,0.02707426,111000.0,110990.0,0.49410132]
[1762083503804,0.02707426,111000.0,110990.0,0.47608168]
[1762083504008,0.02907426,111000.0,110990.0,0.47608168]
[1762083504625,0.03007426,111000.0,110990.0,0.47608168]
[1762083505048,0.003,111000.0,110990.0,0.47608168]
[1762083505738,0.003,111000.0,110990.0,0.51226396]
[1762083505954,0.003,111000.0,110990.0,0.56055605]
[1762083506601,0.002,111000.0,110990.0,0.56055605]
[1762083506812,0.00360944,111010.0,111000.0,0.34]
[1762083507060,0.00360944,111010.0,111000.0,0.37505]
[1762083507310,0.00360944,111010.0,111000.0,0.3917]
[1762083507909,0.00360944,111010.0,111000.0,0.0517]
[1762083508131,0.00360944,111010.0,111000.0,0.06971801]
[1762083508960,0.00460944,111010.0,111000.0,0.06971801]
[1762083509778,0.00460944,111010.0,111000.0,0.10590029]
[1762083510760,0.001,111010.0,111000.0,0.10590029]
[1762083513545,0.001,111010.0,111000.0,0.15419238]
[1762083516065,0.001,111010.0,111000.0,0.13617437]
[1762083516277,0.001,111010.0,111000.0,0.15419238]
[1762083517811,0.001,111010.0,111000.0,3.15419238]
[1762083518061,0.001,111010.0,111000.0,3.13617437]
[1762083518658,0.00014491,111020.0,111010.0,0.37618228]
[1762083518879,0.00014491,111020.0,111010.0,0.42545228]
[1762083519977,0.00014491,111020.0,111010.0,0.42745228]
[1762083520416,0.00014491,111020.0,111010.0,0.42945228]
[1762083521357,0.00014491,111020.0,111010.0,0.40659228]
[1762083522193,0.00014491,111020.0,111010.0,0.40459228]
[1762083522413,0.00114491,111020.0,111010.0,0.40459228]
[1762083522830,0.00114491,111020.0,111010.0,0.42745228]
[1762083523042,0.00114491,111020.0,111010.0,0.42545228]
[1762083529602,0.00114491,111020.0,111010.0,0.38927]
[1762083534324,0.00114491,111020.0,111010.0,0.43756209]
[1762083534934,0.00114491,111020.0,111010.0,0.38927]
[1762083535133,0.00114491,111020.0,111010.0,0.43756209]
[1762083544282,0.00114491,111020.0,111010.0,0.41470209]
[1762083546168,0.00114491,111020.0,111010.0,0.34]
[1762083546624,0.00609926,111020.0,111010.0,0.34]
[1762083547249,0.00609926,111020.0,111000.0,0.04829209]
[1762083547456,0.00609926,111020.0,111000.0,0.4063101]
[1762083547669,0.00609926,111020.0,111000.0,0.38829209]
[1762083548933,0.00509926,111020.0,111000.0,0.38829209]
[1762083549349,0.00599926,111020.0,111000.0,0.34]
[1762083549555,0.00799926,111020.0,111000.0,0.34]
[1762083549760,0.00699926,111020.0,111000.0,0.34]
[1762083550165,0.01099926,111020.0,111000.0,0.34]
[1762083550568,0.00604491,111020.0,111000.0,0.34]
[1762083550710,0.02707338,111010.0,111000.0,0.34]
[1762083551746,0.00604491,111020.0,111000.0,0.34]
[1762083551933,4.491e-05,111020.0,111000.0,0.34]
[1762083553108,0.00304491,111020.0,111000.0,0.34]
[1762083554310,0.00504491,111020.0,111000.0,0.34]
[1762083555364,0.0321197,111020.0,110990.0,0.04829209]
[1762083555574,0.0321197,111020.0,110980.0,0.44117335]
[1762083555789,0.0321197,111020.0,110980.0,0.42315209]
[1762083556018,0.0321197,111020.0,110990.0,0.35801964]
[1762083556230,0.08575168,111010.0,110990.0,0.34]
[1762083557897,0.11282806,111010.0,110990.0,0.34]
[1762083558100,4.491e-05,111020.0,110990.0,0.34]
[1762083558101,4.491e-05,111020.0,110990.0,0.3669]
[1762083558312,0.001,111010.0,110990.0,0.3669]
[1762083558722,0.001,111010.0,110990.0,0.3898]
[1762083558925,0.02712129,111020.0,110990.0,0.3898]
[1762083559137,0.02712129,111020.0,110990.0,0.3669]
[1762083559342,0.03112129,111020.0,110990.0,0.3669]
[1762083559768,0.03112129,111020.0,110990.0,0.35186]
[1762083560192,0.03112129,111020.0,110990.0,0.34]
[1762083560844,0.03312129,111020.0,110990.0,0.34]
[1762083561277,0.08575168,111010.0,110990.0,0.34]
[1762083562627,0.08675168,111010.0,110990.0,0.34]
[1762083563265,0.001,111010.0,110990.0,0.34]
[1762083566335,0.001,111010.0,110990.0,0.36854]
[1762083566960,0.001,111010.0,111000.0,0.01645]
[1762083567878,0.02712129,111020.0,111000.0,0.01645]
[1762083568110,0.001,111010.0,111000.0,0.01645]
[1762083568726,0.02712129,111020.0,111000.0,0.01645]
[1762083569144,0.02712129,111020.0,111000.0,0.0503]
[1762083569288,0.02712129,111020.0,111000.0,0.04575801]
[1762083569925,0.03112129,111020.0,111000.0,0.04575801]
[1762083570129,0.03312129,111020.0,111000.0,0.04575801]
[1762083572381,0.03312129,111020.0,111000.0,0.06831801]
[1762083572600,0.03312129,111020.0,111000.0,0.04575801]
[1762083573749,0.03312129,111020.0,111000.0,0.06831801]
[1762083574201,0.03312129,111020.0,111000.0,0.04575801]
[1762083575674,0.00604491,111020.0,111000.0,0.06831801]
[1762083577046,0.00604491,111020.0,111010.0,0.05007]
[1762083577528,0.00604491,111020.0,111000.0,0.11505969]
[1762083577685,0.00604491,111020.0,111000.0,0.18591178]
[1762083577884,0.00204491,111020.0,111010.0,0.01622]
[1762083578246,0.00204491,111020.0,111010.0,0.04552639]
[1762083578864,4.491e-05,111020.0,111010.0,0.04552639]
[1762083579054,0.00404491,111020.0,111010.0,0.06808639]
[1762083579256,0.00604491,111020.0,111010.0,0.06808639]
[1762083579656,0.00604491,111020.0,111010.0,0.40808639]
[1762083579882,0.00604491,111020.0,111010.0,0.39007]
[1762083580575,4.491e-05,111020.0,111010.0,0.39007]
[1762083580744,0.00104491,111020.0,111010.0,0.43836209]
[1762083581341,0.00104491,111020.0,111010.0,0.39007]
[1762083581714,0.00104491,111020.0,111010.0,0.43836209]
[1762083585700,0.00104491,111020.0,111010.0,3.47454437]
[1762083586563,4.491e-05,111020.0,111010.0,3.47454437]
[1762083586994,4.491e-05,111020.0,111010.0,3.47854437]
[1762083596199,4.491e-05,111020.0,111010.0,3.48215301]
[1762083597585,4.491e-05,111020.0,111010.0,3.47854437]
[1762083597792,4.491e-05,111020.0,111010.0,3.48215301]
[1762083603586,4.491e-05,111020.0,111010.0,3.48215301]
[1762083606260,4.491e-05,111020.0,111010.0,3.43386092]
[1762083606437,4.491e-05,111020.0,111010.0,3.48205477]
[1762083606637,4.491e-05,111020.0,111010.0,3.48205478]
[1762083607201,4.491e-05,111020.0,111010.0,3.43386092]
[1762083608271,4.491e-05,111020.0,111010.0,3.49815257]
[1762083608691,4.491e-05,111020.0,111010.0,3.43386092]
[1762083609343,4.491e-05,111020.0,111010.0,3.49815257]
[1762083611720,4.491e-05,111020.0,111010.0,3.49454393]
[1762083638085,4.491e-05,111020.0,111010.0,3.43025228]
[1762083638508,4.491e-05,111020.0,111010.0,3.44479931]
[1762083638747,4.491e-05,111020.0,111010.0,3.52516387]
[1762083651427,4.491e-05,111020.0,111010.0,3.62010387]
[1762083651677,4.491e-05,111020.0,111010.0,3.52516387]
[1762083652062,4.1e-06,111020.0,111010.0,3.44479931]
[1762083652262,4.1e-06,111020.0,111010.0,3.68616302]
[1762083652805,4.1e-06,111020.0,111010.0,3.69216301]
[1762083653224,0.0010041,111020.0,111010.0,3.71116301]
[1762083653433,0.0010041,111020.0,111010.0,3.6872109]
[1762083653593,9.15e-05,111020.0,111010.0,3.71116301]
[1762083653798,9.15e-05,111020.0,111010.0,3.5986914]
[1762083655270,9.15e-05,111020.0,111010.0,3.71099033]
[1762083657326,9.15e-05,111020.0,111010.0,3.71180582]
[1762083659773,9.15e-05,111020.0,111010.0,3.71170582]
[1762083660655,9.15e-05,111020.0,111010.0,3.73621864]
[1762083660859,9.15e-05,111020.0,111010.0,3.72621865]
[1762083661096,9.15e-05,111020.0,111010.0,3.71170582]
[1762083661245,9.15e-05,111020.0,111010.0,3.73621864]
[1762083662104,2.26e-05,111030.0,111020.0,3.5806772]
[1762083662305,7.091e-05,111030.0,111020.0,3.59127431]
[1762083662740,7.091e-05,111030.0,111020.0,3.59488155]
[1762083663827,7.091e-05,111030.0,111020.0,3.59888155]
[1762083664255,7.091e-05,111030.0,111020.0,3.60688155]
[1762083665627,7.091e-05,111030.0,111020.0,3.70918049]
[1762083666049,7.091e-05,111030.0,111020.0,3.71918048]
[1762083666254,7.091e-05,111030.0,111020.0,3.70918049]
[1762083666442,7.091e-05,111030.0,111020.0,3.71918048]
[1762083667914,7.091e-05,111030.0,111020.0,3.69466766]
[1762083668323,7.091e-05,111030.0,111020.0,3.68466767]
[1762083668666,7.091e-05,111030.0,111020.0,3.69466766]
[1762083669670,7.091e-05,111030.0,111020.0,3.68466767]
[1762083669907,7.091e-05,111030.0,111020.0,3.69466766]
[1762083670467,7.091e-05,111030.0,111020.0,3.68466767]
[1762083670792,7.091e-05,111030.0,111020.0,3.69466766]
[1762083671439,7.091e-05,111030.0,111020.0,3.68466767]
[1762083671655,7.091e-05,111030.0,111020.0,3.69466766]
[1762083671863,7.091e-05,111030.0,111020.0,3.68466767]
[1762083672067,5.51e-06,111030.0,111020.0,3.69466766]
[1762083672274,5.51e-06,111030.0,111020.0,3.47742874]
[1762083672495,5.51e-06,111030.0,111020.0,3.53002081]
[1762083672701,5.51e-06,111030.0,111020.0,3.5400208]
[1762083672904,5.51e-06,111030.0,111020.0,3.47648816]
[1762083673115,5.51e-06,111030.0,111020.0,3.48648815]
[1762083673533,5.51e-06,111030.0,111020.0,3.58878709]
[1762083673750,5.51e-06,111030.0,111020.0,3.59878708]
[1762083673974,5.51e-06,111030.0,111020.0,3.58878709]
[1762083674193,5.51e-06,111030.0,111020.0,3.59878708]
[1762083674411,5.51e-06,111030.0,111020.0,3.58878709]
[1762083674699,5.51e-06,111030.0,111020.0,3.59878708]
[1762083674911,5.51e-06,111030.0,111020.0,3.58878709]
[1762083675146,5.51e-06,111030.0,111020.0,3.59878708]
[1762083675348,5.51e-06,111030.0,111020.0,3.58878709]
[1762083675556,5.51e-06,111030.0,111020.0,3.59878708]
[1762083675991,5.51e-06,111030.0,111020.0,3.58878709]
[1762083676213,0.0012,111050.0,111040.0,0.37618228]
[1762083676434,0.00124831,111050.0,111040.0,3.4681728]
[1762083676648,0.00124831,111050.0,111040.0,3.49679179]
[1762083676868,0.00124831,111050.0,111040.0,3.52004179]
[1762083677322,0.00124831,111050.0,111040.0,3.42727228]
[1762083677546,0.00124831,111050.0,111040.0,3.42827228]
[1762083679100,0.00124831,111050.0,111040.0,3.42927228]
[1762083679532,0.00124831,111050.0,111040.0,3.50946044]
[1762083681583,0.00146654,111050.0,111040.0,3.60440044]
[1762083681798,0.00146654,111050.0,111040.0,3.50946044]
[1762083684922,0.00146654,111050.0,111040.0,3.45739871]
[1762083685140,0.01600961,111050.0,111040.0,3.45739871]
[1762083685348,0.01600961,111050.0,111040.0,3.49358099]
[1762083687628,0.01600961,111050.0,111040.0,0.49358099]
[1762083687836,0.01600961,111050.0,111040.0,3.49358099]
[1762083688450,0.01600961,111050.0,111040.0,3.49258099]
[1762083688896,0.01800961,111050.0,111040.0,3.49158099]
[1762083689104,0.01900961,111050.0,111040.0,3.49158099]
[1762083689311,0.01700961,111050.0,111040.0,3.49158099]
[1762083689506,0.01600961,111050.0,111040.0,3.49158099]
[1762083689751,0.01600961,111050.0,111040.0,3.49358099]
[1762083697440,0.00146654,111050.0,111040.0,3.49358099]
[1762083697526,0.00146654,111050.0,111040.0,3.46136473]
[1762083697756,0.00146654,111050.0,111040.0,3.54155289]
[1762083698446,0.00146654,111050.0,111040.0,3.50946044]
[1762083699620,0.00011626,111050.0,111040.0,3.65649287]
[1762083699843,0.00011626,111050.0,111040.0,3.69249049]
[1762083700289,0.00011626,111050.0,111040.0,3.6824905]
[1762083700508,0.00011626,111050.0,111040.0,3.69049049]
[1762083700946,0.00011626,111050.0,111040.0,3.70649049]
[1762083701392,0.00011626,111050.0,111040.0,3.6964905]
[1762083701625,0.00011626,111050.0,111040.0,3.70649049]
[1762083702758,0.00011626,111050.0,111040.0,3.6964905]
[1762083703209,0.00011626,111050.0,111040.0,3.70649049]
[1762083703636,0.00011626,111050.0,111040.0,3.66439805]
[1762083703918,0.00011626,111050.0,111040.0,3.55209912]
[1762083704139,0.00011626,111050.0,111040.0,3.56209911]
[1762083704347,0.00011626,111050.0,111040.0,3.66439805]
[1762083704553,0.00011626,111050.0,111040.0,3.56209911]
[1762083704962,0.00011626,111050.0,111040.0,3.55209912]
[1762083705183,0.00011626,111050.0,111040.0,3.56209911]
[1762083705382,0.00011626,111050.0,111040.0,3.55209912]
[1762083705587,0.00011626,111050.0,111040.0,3.56209911]
[1762083706023,0.00011626,111050.0,111040.0,3.55209912]
[1762083706447,0.00011626,111050.0,111040.0,3.71129911]
[1762083706662,0.00011626,111050.0,111040.0,3.70129912]
[1762083707081,0.00011626,111050.0,111040.0,3.81359805]
[1762083709691,7.95e-06,111050.0,111040.0,3.81359805]
[1762083713199,7.95e-06,111050.0,111040.0,3.82359804]
[1762083719697,0.00028,111070.0,111060.0,3.34]
[1762083719917,0.00028,111070.0,111060.0,3.43180768]
[1762083719918,0.00076321,111070.0,111060.0,3.43180768]
[1762083720140,0.00076321,111070.0,111060.0,3.45679768]
[1762083720363,0.00119957,111070.0,111060.0,3.45679768]
[1762083721010,0.00119957,111070.0,111060.0,3.45879768]
[1762083721892,0.00119957,111070.0,111060.0,3.46279768]
[1762083724334,0.00119957,111070.0,111060.0,3.39875]
[1762083725363,0.00119957,111070.0,111060.0,3.40778163]
[1762083726384,0.00119957,111070.0,111060.0,3.47191907]
[1762083726833,0.00119957,111070.0,111060.0,3.50810135]
[1762083729422,0.00119957,111070.0,111060.0,3.44396391]
[1762083730170,0.00119957,111070.0,111060.0,3.43531197]
[1762083731460,0.00119957,111070.0,111060.0,0.05875]
[1762083731665,0.00119957,111070.0,111060.0,0.14101456]
[1762083731871,0.00119957,111070.0,111060.0,3.14101456]
[1762083732088,0.00119957,111070.0,111060.0,3.45900628]
[1762083732295,0.00119957,111070.0,111060.0,3.45700628]
[1762083732498,0.00119957,111070.0,111060.0,3.45800628]
[1762083734507,0.00119957,111070.0,111060.0,3.45700628]
[1762083734951,0.00119957,111070.0,111060.0,3.45800628]
[1762083736469,0.00119957,111070.0,111060.0,3.49418856]
[1762083737372,0.00119957,111070.0,111060.0,3.45697881]
[1762083739433,0.00119957,111070.0,111060.0,3.52119294]
[1762083747920,0.00119957,111070.0,111060.0,3.45697881]
[1762083748131,0.00119957,111070.0,111060.0,3.52120869]
[1762083748806,0.00119957,111070.0,111060.0,3.45697881]
[1762083749243,0.00119957,111070.0,111060.0,3.48907126]
[1762083749466,0.00119957,111070.0,111060.0,3.45697881]
[1762083749734,0.00119957,111070.0,111060.0,3.52122259]
[1762083751323,0.00119957,111070.0,111060.0,0.48090259]
[1762083751544,0.00119957,111070.0,111060.0,0.49739259]
[1762083751768,0.00119957,111070.0,111060.0,0.52167259]
[1762083758251,0.00119957,111070.0,111060.0,0.43038228]
[1762083759591,0.00119957,111070.0,111060.0,0.3942]
[1762083759839,0.00119957,111070.0,111060.0,0.44239778]
[1762083760468,0.00119957,111070.0,111060.0,0.41811778]
[1762083761574,0.00119957,111070.0,111060.0,0.44239778]
[1762083765865,0.00119957,111070.0,111060.0,0.41811778]
[1762083766521,0.00119957,111070.0,111060.0,0.44239778]
[1762083772584,0.00119957,111070.0,111060.0,3.3942]
[1762083775528,0.00119957,111070.0,111060.0,3.45844378]
[1762083776365,0.00126589,111070.0,111060.0,3.45844378]
[1762083777314,0.00126589,111070.0,111060.0,3.49462606]
[1762083777749,0.00126589,111070.0,111060.0,3.52167646]
[1762083780425,0.00126589,111070.0,111060.0,3.45743268]
[1762083785390,0.00126589,111070.0,111060.0,3.52163121]
[1762083807837,0.00126589,111070.0,111060.0,3.45743268]
[1762083808704,0.00126589,111070.0,111060.0,3.5217184]
[1762083808912,0.00126589,111070.0,111060.0,3.45743268]
[1762083810813,0.00126589,111070.0,111060.0,3.48949311]
[1762083811905,0.00126589,111070.0,111060.0,3.45743268]
[1762083814462,0.00126589,111070.0,111060.0,3.53749229]
[1762083815540,0.00126589,111070.0,111060.0,3.45743268]
[1762083815784,0.00126589,111070.0,111060.0,3.53749229]
[1762083818457,0.00126589,111070.0,111060.0,3.56955272]
[1762083819513,0.00126589,111070.0,111060.0,3.53749229]
[1762083826458,0.00126589,111070.0,111060.0,3.53649229]
[1762083826690,0.00126589,111070.0,111060.0,3.54049229]
[1762083826877,0.00126589,111070.0,111060.0,3.54249229]
[1762083842373,7.946e-05,111070.0,111060.0,3.46243268]
[1762083849107,7.946e-05,111070.0,111060.0,3.5066478]
[1762083850687,7.946e-05,111070.0,111060.0,3.4262504]
[1762083851352,7.946e-05,111070.0,111060.0,3.4202504]
[1762083855447,7.946e-05,111070.0,111060.0,3.48454432]
[1762083856629,7.946e-05,111070.0,111060.0,3.45749392]
[1762083857009,0.40007946,111070.0,111060.0,3.45749392]
[1762083857217,0.40007946,111070.0,111060.0,3.4845462]
[1762083859204,0.40007946,111070.0,111060.0,3.43321392]
[1762083859410,0.40007946,111070.0,111060.0,3.40429392]
[1762083860024,0.40007946,111070.0,111060.0,0.40429392]
[1762083860460,0.40007946,111070.0,111060.0,0.38821292]
[1762083860944,0.40007946,111070.0,111060.0,0.08036011]
[1762083861186,0.40007946,111070.0,111060.0,0.03214719]
[1762083862655,0.40307946,111070.0,111060.0,0.03214719]
[1762083862863,0.40907946,111070.0,111060.0,0.03214719]
[1762083865430,0.40907946,111070.0,111050.0,0.43207011]
[1762083865612,0.40906632,111070.0,111050.0,0.43207011]
[1762083865835,0.40906632,111070.0,111050.0,0.44727011]
[1762083866498,0.40306632,111070.0,111050.0,0.44727011]
[1762083866703,0.40906632,111070.0,111050.0,0.44727011]
[1762083866910,0.40606632,111070.0,111050.0,0.44727011]
[1762083867295,0.40906632,111070.0,111050.0,0.44727011]
[1762083869348,0.40906632,111070.0,111060.0,0.02716]
[1762083869562,0.40906632,111070.0,111060.0,0.05930719]
[1762083869802,0.40906632,111070.0,111050.0,0.45632011]
[1762083870355,0.40306632,111070.0,111050.0,0.45632011]
[1762083870583,0.40006632,111070.0,111050.0,0.47153011]
[1762083870811,0.40606632,111070.0,111050.0,0.44728011]
[1762083871276,0.40006632,111070.0,111050.0,0.44728011]
[1762083871493,0.40906632,111070.0,111050.0,0.44728011]
[1762083871743,0.40906632,111070.0,111030.0,0.08036011]
[1762083871951,0.09792294,111060.0,111030.0,0.09837325]
[1762083872164,0.08575168,111060.0,111030.0,0.43837325]
[1762083872374,0.08575168,111060.0,111030.0,0.43557011]
[1762083872606,0.09792294,111060.0,111030.0,0.10742079]
[1762083872830,0.09792294,111060.0,111040.0,0.34]
[1762083873495,0.09892294,111060.0,111040.0,0.34]
[1762083873718,0.10092294,111060.0,111040.0,0.34]
[1762083874471,0.10692294,111060.0,111040.0,0.34]
[1762083879813,0.10692294,111060.0,111020.0,0.43231011]
[1762083880015,0.10692294,111060.0,111020.0,0.4111605]
[1762083880219,0.10692294,111060.0,111020.0,0.3992105]
[1762083880435,0.10692294,111060.0,111020.0,0.37214719]
[1762083880627,0.10092294,111060.0,111020.0,0.37214719]
[1762083881035,0.10692294,111060.0,111020.0,0.37214719]
[1762083881917,0.15462187,111060.0,111020.0,0.34]
[1762083882152,0.15762187,111060.0,111020.0,0.34]
[1762083882355,0.10692294,111060.0,111030.0,0.01801314]
[1762083882574,0.10692294,111060.0,111030.0,0.02996314]
[1762083882795,0.10692294,111060.0,111030.0,0.38517314]
[1762083883023,0.10692294,111060.0,111030.0,0.36716]
[1762083883468,0.09792294,111060.0,111030.0,0.36716]
[1762083883715,0.10392294,111060.0,111030.0,0.36716]
[1762083883943,0.10692294,111060.0,111030.0,0.36716]
[1762083884354,0.10692294,111060.0,111030.0,0.34]
[1762083885191,0.009,111060.0,111040.0,0.01801152]
[1762083885398,0.02117126,111060.0,111030.0,0.39141]
[1762083885610,0.10692294,111060.0,111030.0,0.36716]
[1762083886036,0.10092294,111060.0,111030.0,0.36716]
[1762083886441,0.10392294,111060.0,111030.0,0.36716]
[1762083886601,0.10392294,111060.0,111030.0,0.02716]